Cogmind - Beta 9.6 @@@ ROGUE MODE // 2020.09.03 @ 18:12:26 Player: Henry Result: Destroyed by G-34 Mercenary with Small Laser Performance ------------- Evolutions (0) 0 Regions Visited (1) 200 Robots Destroyed (10) 50 Value Destroyed (265) 265 Prototype IDs (0) 0 Alien Tech Used (0) 0 Bonus (0) 0 TOTAL SCORE: 515 Bonus ------- None Cogmind --------- Core Integrity 0/250 Matter 272/300 Energy 125/125 System Corruption 0% Temperature Cool (22) Movement Treading (160) Location -10/Materials Parts ------- > --- POWER (1) -------- Light Ion Engine > --- PROPULSION (2) --- Light Treads > --- UTILITY (2) ------ Small Storage Unit Signal Interpreter > --- WEAPON (2) ------- Small Laser Light Cannon > --- INVENTORY (6) ---- Ion Engine Light Nuclear Core Wheel Sensor Array Improved Terrain Scanner Peak State ------------ > --- POWER ------------ Ion Engine > --- PROPULSION ------- Light Treads Compact Wheel > --- UTILITY ---------- Small Storage Unit Signal Interpreter > --- WEAPON ----------- EM Pulse Gun Light Assault Rifle > --- INVENTORY -------- Light Ion Engine Light Treads Wheel Improved Terrain Scanner Small Laser [Rating: 7] Favorites ----------- Power Ion Engine Engine Ion Engine Propulsion Light Treads Treads Light Treads Wheel Compact Wheel Utility Small Storage Unit Storage Small Storage Unit Processor Signal Interpreter Weapon Light Assault Rifle Energy Gun EM Pulse Gun Ballistic Gun Light Assault Rifle Ballistic Cannon Light Cannon Impact Weapon Hammer Build | -11 -10 ------- Run | Scr Mat Slots Evolved . | . . Power . | . . Propulsion . | . . Utility . | . . Weapon . | . . Parts Attached 13 | 7 6 Power 3 | 2 1 Engine 3 | 2 1 Core . | . . Reactor . | . . Propulsion 3 | 2 1 Treads 2 | 1 1 Leg . | . . Wheel 1 | 1 . Hover . | . . Flight . | . . Utility 2 | 1 1 Device . | . . Storage 1 | 1 . Processor 1 | . 1 Hackware . | . . Protection . | . . Artifact . | . . Weapon 5 | 2 3 Energy Gun 2 | 1 1 Energy Cannon . | . . Ballistic Gun 1 | 1 . Ballistic Cannon 1 | . 1 Launcher . | . . Special Weapon . | . . Impact Weapon 1 | . 1 Slashing Weapon . | . . Piercing Weapon . | . . Special Melee Weapon . | . . Unidentified Prototypes . | . . Parts Lost 5 | . 5 Power . | . . Propulsion 2 | . 2 Utility . | . . Weapon 3 | . 3 Highest Loss Streak 3 | . 3 Average Slot Usage (%) 85 | . 85 Engine 11 | . 11 Treads 13 | . 13 Wheel 11 | . 11 Storage 14 | . 14 Processor 12 | . 12 Energy Gun 7 | . 7 Ballistic Gun 8 | . 8 Impact Weapon 5 | . 5 Naked Turns . | . . Heaviest Build 12 | 12 12 Greatest Support 20 | 20 20 Greatest Overweight (x) 3 | 3 . Average Overweight (x) . | . . Largest Inventory Capacity 6 | 6 6 Average Capacity 5 | 5 6 Most Carried 6 | 5 6 Average Carried 4 | 3 5 Final Capacity 6 | 6 6 Final Carried 5 | 5 5 Class Distribution -------------------- 100% | Mutant Dominant Class ---------------- Mutant | -10/Materials Resources | -11 -10 ----------- Run | Scr Mat Matter Collected 307 | 270 37 Remotely . | . . Salvage Created 504 | 127 377 Parts 15 | 4 11 Haulers Intercepted . | . . Recyclers Shooed . | . . Parts Field Recycled . | . . Retrieved Matter . | . . Parts Self-Destructed . | . . Prevented . | . . Kills | -11 -10 ------- Run | Scr Mat Combat Hostiles Destroyed 6 | . 6 Melee 2 | . 2 Guns 1 | . 1 Cannons 1 | . 1 Classes Destroyed 4 | 2 2 Tunneler 1 | 1 . Recycler 2 | 1 1 Watcher 1 | . 1 Grunt 6 | . 6 Best Kill Streak 4 | 2 4 Combat Bots Only 3 | . 3 Max Kills in Single Turn 1 | 1 1 Gunslinging . | . . Exploded . | . . Melee 1 | . 1 Uniques/NPCs Destroyed . | . . Combat | -11 -10 -------- Run | Scr Mat Damage Taken 800 | 24 776 Core 252 | 24 228 Absorbed by Shields . | . . Core Remaining (%) 90 | 90 . Volleys Fired 26 | 11 15 Largest 2 | 1 2 Hottest 75 | 40 75 Shots Fired 33 | 11 22 Gun 31 | 11 20 Cannon 2 | . 2 Launcher . | . . Special . | . . Kinetic 14 | . 14 Thermal 1 | . 1 Explosive . | . . Electromagnetic 18 | 11 7 Robot Hit Streak 7 | 4 7 Robot Miss Streak 3 | 1 3 Penetration Max . | . . Secondary Targets 1 | . 1 Max Gunslinging Chain 1 | . 1 Shots Hit Robots 57 | 8 49 Core Hits 12 | 3 9 Critical Hits . | . . Critical Kills . | . . Critical Parts Destroyed . | . . Melee Attacks 39 | . 39 Impact 39 | . 39 Slashing . | . . Piercing . | . . Sneak Attacks 1 | . 1 Combat Hostiles . | . . Follow-up Attacks . | . . Damage Inflicted 983 | 173 810 Guns 288 | 137 151 Cannons 37 | . 37 Explosions 36 | 36 . Melee 622 | . 622 Ramming . | . . Kinetic 114 | . 114 Thermal 46 | 36 10 Explosive . | . . Electromagnetic 201 | 137 64 Impact 622 | . 622 Slashing . | . . Piercing . | . . Highest Corruption . | . . Average Corruption . | . . Corruption Purged . | . . Overload Shots . | . . Overflow Damage 39 | 3 36 Projectiles . | . . Explosions 3 | 3 . Melee 36 | . 36 Knockbacks 3 | . 3 Impact 1 | . 1 Kinetic 1 | . 1 Secondary 1 | . 1 Self-Inflicted Damage 24 | 24 . Shots 1 | 1 . Rammed . | . . Targets Rammed . | . . Kicked . | . . Crushed . | . . Highest Temperature 68 | 12 68 Average Temperature 23 | 12 25 Received Heat Transfer 447 | . 447 Siege Activations . | . . Robots Corrupted . | . . Combat Hostiles . | . . Parts Fried 3 | 1 2 Impact Corruptions 5 | . 5 Robots Melted . | . . Combat Hostiles . | . . Parts Melted . | . . Heat Transferred 75 | 50 25 Parts Sabotaged . | . . Parts Stolen . | . . Parts Stripped . | . . Power Chain Reactions 1 | 1 . Missiles Intercepted . | . . Alert | -11 -10 ------- Run | Scr Mat Peak Influence 120 | 10 120 Average Influence 26 | 3 35 Maximum Alert Level . | . . Low Security (%) 100 | 100 100 Level 1 . | . . Level 2 . | . . Level 3 . | . . Level 4 . | . . Level 5 . | . . High Security . | . . Max Security . | . . Squads Dispatched 1 | . 1 Investigation . | . . Extermination . | . . Reinforcement 1 | . 1 Assault . | . . Garrison . | . . Intercept . | . . Construction Impeded . | . . Haulers Reinforced . | . . Stealth | -11 -10 --------- Run | Scr Mat Distress Signals 1 | . 1 Communications Jammed . | . . Distress Signals . | . . Times Spotted 11 | . 11 Peak Tracking Total 8 | . 8 Tactical Retreats 7 | . 7 Traps | -11 -10 ------- Run | Scr Mat Traps Triggered . | . . Indirectly . | . . Trap Hack Attempts . | . . Triggered . | . . Disarmed . | . . Reprogrammed . | . . Reused . | . . Traps Extracted . | . . Installed . | . . Triggered . | . . Machines | -11 -10 ---------- Run | Scr Mat Machines Disabled . | . . Max in Single Turn . | . . Machines Sabotaged . | . . Garrisons Compromised . | . . Overloaded Fab Kills . | . . Fab Network Shutdowns . | . . Hacking | -11 -10 --------- Run | Scr Mat Machines Accessed 2 | . 2 Terminals 2 | . 2 Fabricators . | . . Repair Stations . | . . Recycling Units . | . . Scanalyzers . | . . Garrison Access . | . . Total Hacks 6 | . 6 Successful 3 | . 3 Failed 3 | . 3 Catastrophic . | . . Database Lockouts . | . . Manual 6 | . 6 Terminals 6 | . 6 Fabricators . | . . Repair Stations . | . . Recycling Units . | . . Scanalyzers . | . . Garrison Access . | . . Terminal Hacks 1 | . 1 Unreport Threat 1 | . 1 Fabricator Hacks . | . . Repair Station Hacks . | . . Recycling Unit Hacks . | . . Scanalyzer . | . . Garrison Access Hacks . | . . Unauthorized Hacks 2 | . 2 Terminals 2 | . 2 Botnet 2 | . 2 Fabricators . | . . Repair Stations . | . . Recycling Units . | . . Scanalyzers . | . . Garrison Access . | . . Data Cores Recovered . | . . Used . | . . Hacking Detections 2 | . 2 Full Trace Events . | . . Feedback Events . | . . Feedback Blocked . | . . Robot Schematics Acquired . | . . Robots Built . | . . Matter . | . . Time . | . . Total Robot Build Rating . | . . Part Schematics Acquired . | . . Parts Built . | . . Matter . | . . Time . | . . Total Part Build Rating . | . . Parts Repaired . | . . Time . | . . Parts Recycled . | . . Recycled Matter . | . . Retrieved Matter . | . . Retrieved Components . | . . Parts Scanalyzed . | . . Part Schematics Acquired . | . . Parts Damaged . | . . Bothacking | -11 -10 ------------ Run | Scr Mat Used RIF Installer . | . . Robots Hacked . | . . Non-combat . | . . Combat . | . . Robot Hacks Applied . | . . Relay Couplers Released . | . . Robots Rewired . | . . Allies Hacked . | . . Hacks Repelled . | . . Allies | -11 -10 -------- Run | Scr Mat Total Allies . | . . Largest Group . | . . Highest-Rated Group . | . . Highest-Rated Ally . | . . Total Orders . | . . Ally Attacks . | . . Total Damage . | . . Kills . | . . Allies Corrupted . | . . Allies Melted . | . . Intel | -11 -10 ------- Run | Scr Mat Robot Analysis Total . | . . Derelict Logs Recovered . | . . Drone Launches . | . . Drone Recoveries . | . . Exploration | -11 -10 ------------- Run | Scr Mat Turns Passed 402 | 112 290 Spaces Moved 193 | 61 132 Core 10 | 10 . Treads 31 | 22 9 Legs . | . . Wheels 152 | 29 123 Hover . | . . Flight . | . . Fastest Speed 50 | 50 100 Average Speed 110 | 124 104 Slowest Speed 200 | 200 160 Overloaded Moves . | . . Propulsion Burnouts . | . . Robots Hopped . | . . Cave-ins Triggered . | . . Exploration Rate (%) 16 | 5 27 Regions Visited 1 Branch Regions . Pre-discovered Areas . | . . Known Exits Taken . | . . Unknown Exits Taken 1 | 1 . Scrap Searched . | . . Spaces Dug . | . . Terrain Destroyed 5 | 5 . Melee . | . . Projectile . | . . AOE 5 | 5 . Actions | -11 -10 --------- Run | Scr Mat Total 290 | 82 208 Wait 9 | . 9 Move 192 | 60 132 Hop . | . . Pick Up 9 | 4 5 Fast Attach 7 | 6 1 Attach 5 | . 5 Detach 1 | . 1 Swap 1 | 1 . Drop 1 | . 1 Fire 26 | 11 15 Melee 39 | . 39 Ram . | . . Kick . | . . Crush . | . . Escape Stasis . | . . Rewire . | . . Trap . | . . Miscellaneous . | . . Route ------- -11/Scrapyard -10/Materials (discovered 1 exit: [*Min]) History --------- Turn | Location | Event 21 | -11/Scrapyard | Discovered new exit (range 16) 113 | -11/Scrapyard | Entered Materials 238 | -10/Materials | Discovered new exit (range 12) 324 | -10/Materials | Build established: Mutant 343 | -10/Materials | Core integrity fell below 50% 375 | -10/Materials | Core integrity fell below 20% 403 | -10/Materials | Destroyed by G-34 Mercenary with Small Laser Last Messages --------------- 00354_ Tractor Beam fried. 00355_ Com. Wheel destroyed. 00367_ K-01 Serf collects debris. 00368_ G-34 Mercenary destroyed. 00370_ K-01 Serf collects debris. 00378_ Hammer destroyed. 00382_ Acquired Lgt. Nuclear Core. 00383_ K-01 Serf collects debris. 00391_ Acquired Lgt. Cannon. 00392_ R-06 Scavenger collects Aluminum Leg. 00393_ K-01 Serf collects debris. 00393_ G-34 Mercenary destroyed. 00393_ K-01 Serf collects debris. 00396_ R-06 Scavenger collects Ion Engine. 00398_ K-01 Serf collects debris. 00398_ Acquired Sml. Laser. 00399_ K-01 Serf collects debris. 00399_ R-06 Scavenger collects Aluminum Leg. 00401_ K-01 Serf collects debris. 00401_ G-34 Mercenary knocked back. Map ----- +----------------------------------------------------+ | ?????????????????????????????????????????????????? | | ?????????????????????????????????????????????????# | | ?????????????????????????????????????????????????# | | ?????????????????????????????????????????????????# | | ?????????????????????????????????????????????????# | | ?????????????????????????????????????????????????# | | ?????????????????????????????????????????????????# | | ?????????????????????????#####???????????????????# | | ?????????????????????????# ##################+## | | ?????????????????????????# | | ?????????????????????????# | | ???????????????########### #################/## | | ???????????? #???????????# # | | ???????????? #???????????# # | | ???????????? " """"" T #???????????# # | | ??????????????????"""""" #???????????# # | | ??????????????????? """ #?########??# # | | ??????????????????? #?# ! #??# # | | ??????????????????? #?# T #??####+### | | ????????????????? #?# #?????# #?? | | ?????????????????##############?# !#?????# #?? | | ?????????????????##############?# #?????# #?? | | ?????????????????# g #??? ????### ### | | ?????????????????# """"" """o######/####### # | | ?????????????????# ""T"" """ # # | | ?????????????????# @"" r#% # | | ?????????????????# kk% +%% # | | ?????????????????##############% ##+####### # | | ??????????????????????????? # ????####### | | ???????????????????????? # "" =????????? | | ????????????????????? # "Y #??????? | | ??????????????????????######### # "" #??????? | | ??????????????????????????????# # #??????? | | ??????????????????????????????# #########??????? | | ?????????????????????????????? "??????????????? | | ?????????????????????????????? ??????????????? | | ?????????????????????????????? ??????????????? | | ?????????????????????????????# < "?????????????? | | ?????????????????????????????# |?????????????? | | ?????????????????????????????# ?????????????? | | ?????????????????????????????# ""?????????????? | | ??????????????????????????????# ???????????????? | | ?????????????????????????????????????????????????? | | ?????????????????????????????????????????????????? | | ?????????????????????????????????????????????????? | | ?????????????????????????????????????????????????? | | ?????????????????????????????????????????????????? | | ?????????????????????????????????????????????????? | | ?????????????????????????????????????????????????? | | ?????????????????????????????????????????????????? | +----------------------------------------------------+ Best States ------------- Heat Dissipation 25 Energy Generation 10 Energy Capacity 250 Matter Stores 300 Matter Capacity 300 Sight Range 16 Terrain Scan Density 10 Evasion (%) 40 Recoil Reduction 1 Item Schematics ----------------- None Robot Schematics ------------------ None Fabricated ------------ Nothing Alien Tech Used ----------------- None Achievements -------------- None Challenges ------------ None Game ------ Seed StasisVisualCapacitor Manual? 0 Play Time 00:06:39 Cumulative 447.5 hours Start 2020.09.03 @ 18:08:32 End 2020.09.03 @ 18:12:26 Sessions 1 Manual Loads 0 Difficulty Rogue Special Mode None Game No. 158 Rogue 158 Adventurer 0 Explorer 0 Win Type - Total 0 Types 0/0/0/0/0/0/0 Lore% 29 Gallery% 57 Achievement% 29 Wizard Run 0 Options --------- ASCII 0 Keyboard 1 Movement Numpad Keybinds 0 Fullscreen 2 Font 18/X11Bold Map View 76x50 Tactical HUD 1 Map Filters NONE Filters NONE Steam 1 RUN: 73f475ed-6e40-4408-89bd-98db59b845c1